bitfinex-derivatives/quotes_SOLF0:USTF0_20250224
["timestamp","ask_amount","ask_price","bid_price","bid_amount"]
[1740392144549,0.0452449,157.55,157.52,0.04041658]
[1740392145047,6.3459,157.53,157.52,0.04041658]
[1740392148752,0.0452449,157.55,157.52,0.04041658]
[1740392148954,6.3907449,157.55,157.52,0.04041658]
[1740392150450,0.0452449,157.55,157.52,0.04041658]
[1740392150653,6.3456,157.54,157.52,0.04041658]
[1740392151751,6.3459,157.53,157.52,0.04041658]
[1740392152649,6.3459,157.53,157.43,5.8019]
[1740392152860,36.15938049,157.51,157.43,5.8019]
[1740392153962,0.04560882,157.49,157.45,0.04346319]
[1740392154255,6.3487,157.46,157.45,0.04346319]
[1740392155653,36.15938049,157.48,157.37,35.20565604]
[1740392155850,36.15938049,157.44,157.37,35.20565604]
[1740392156350,6.352,157.38,157.37,35.20565604]
[1740392156754,6.3528,157.36,157.33,175.44789859]
[1740392156956,6.3528,157.36,157.35,62.75121315]
[1740392157250,6.3532,157.35,157.34,0.04075291]
[1740392157452,46.45938049,157.36,157.31,8.80338191]
[1740392157753,36.15938049,157.32,157.29,70.42705535]
[1740392157952,36.15938049,157.35,157.29,70.42705535]
[1740392158351,36.15938049,157.32,157.29,70.42705535]
[1740392160457,4.0910475,157.31,157.29,70.42705535]
[1740392160966,4.0910475,157.31,157.23,6.3579]
[1740392161149,4.0910475,157.3,157.23,6.3579]
[1740392161652,4.13565615,157.29,157.22,6.3583]
[1740392161857,4.13565615,157.29,157.2,5.6408]
[1740392162361,4.0910475,157.28,157.2,5.6408]
[1740392162562,4.0910475,157.28,157.22,6.3583]
[1740392162861,4.0910475,157.27,157.22,6.3583]
[1740392163161,4.13485399,157.27,157.2,5.6408]
[1740392163560,4.0910475,157.26,157.2,5.6408]
[1740392163855,4.0910475,157.26,157.24,6.3576]
[1740392164261,4.0910475,157.25,157.24,6.3576]
[1740392165964,0.04380649,157.27,157.24,6.3576]
[1740392166167,0.04380649,157.27,157.2,5.6408]
[1740392166664,4.06454157,157.26,157.25,6.3572]
[1740392167159,0.04380649,157.27,157.26,6.3568]
[1740392167865,36.15938049,157.36,157.21,36.15938049]
[1740392168064,10.28,157.37,157.34,6.3536]
[1740392168363,10.28,157.37,157.24,36.15938049]
[1740392169160,107.85050294,157.39,157.29,0.04105265]
[1740392169360,5.2e-07,157.32,157.28,3.7869]
[1740392169560,71.69112245,157.39,157.28,3.7869]
[1740392170063,107.85050294,157.39,157.28,3.7869]
[1740392170257,36.15938049,157.36,157.29,6.3553]
[1740392170465,0.04183011,157.35,157.32,0.04055062]
[1740392170764,36.15938049,157.36,157.3,6.3549]
[1740392170962,0.04049983,157.35,157.32,0.04647471]
[1740392171166,36.15938049,157.36,157.22,1.8936]
[1740392171357,42.51338049,157.33,157.32,0.04094645]
[1740392171663,46.45938049,157.33,157.17,36.15938049]
[1740392171862,36.15938049,157.29,157.13,3.8414]
[1740392172060,36.15938049,157.29,157.15,36.15938049]
[1740392172667,0.04291641,157.24,157.23,6.358]
[1740392172867,0.04291641,157.24,157.15,36.15938049]
[1740392173067,10.3,157.25,157.16,1.8883]
[1740392173366,10.34069764,157.25,157.22,0.04360041]
[1740392173766,16.69829764,157.25,157.22,0.04360041]
[1740392173959,10.34069764,157.25,157.22,0.04360041]
[1740392174360,36.15938049,157.23,157.22,0.04360041]
[1740392174759,36.15938049,157.23,157.1,1.8883]
[1740392174967,36.15938049,157.23,157.1,3.7985]
[1740392175765,36.15938049,157.23,157.18,6.36]
[1740392175962,36.15938049,157.23,157.1,3.7985]
[1740392176363,0.04841202,157.18,157.1,3.7985]
[1740392177369,0.04841202,157.18,157.17,6.3604]
[1740392179476,4.20644624,157.18,157.15,6.3609]
[1740392179666,46.43938049,157.17,157.1,3.7985]
[1740392180070,10.28,157.17,157.16,6.3609]
[1740392180373,10.28,157.17,157.1,3.7985]
[1740392180977,10.28,157.17,157.16,6.3609]
[1740392181679,0.04841202,157.18,157.1,3.7985]
[1740392181680,0.04841202,157.18,157.17,6.3605]
[1740392182277,4.20155793,157.18,157.1,3.7985]
[1740392182674,4.15314591,157.17,157.1,3.7985]
[1740392183275,4.15314591,157.17,157.15,6.3609]
[1740392183679,4.15314591,157.16,157.15,6.3609]
[1740392184370,4.15314591,157.16,157.13,6.3617]
[1740392184784,4.19887664,157.16,157.13,6.3617]
[1740392184976,0.04573073,157.16,157.15,6.3613]
[1740392185675,4.22986603,157.16,157.15,6.3613]
[1740392188983,4.22986603,157.16,157.1,3.7985]
[1740392189183,4.22986603,157.16,157.13,6.3618]
[1740392189383,4.1841353,157.15,157.13,6.3618]
[1740392189591,4.1841353,157.15,157.1,3.7985]
[1740392189787,4.1841353,157.14,157.1,3.7985]
[1740392190085,4.1841353,157.14,157.1,1.9102]
[1740392190286,4.1841353,157.14,157.12,6.3624]
[1740392190874,0.04573073,157.16,157.1,1.9102]
[1740392191482,0.04573073,157.16,157.15,6.3613]
[1740392192487,101.94391412,157.16,157.1,1.9102]
[1740392193389,67.67981885,157.15,157.13,6.3618]
[1740392193590,67.67981885,157.15,157.1,1.9102]
[1740392194183,67.67981885,157.15,157.01,10.26]
[1740392194184,36.15938049,157.11,156.82,0.72182539]
[1740392194387,36.15938049,156.98,156.74,1.9396]
[1740392194583,11.36,156.97,156.8,36.15938049]
[1740392194790,0.04546341,156.88,156.8,202.73938049]
[1740392195185,0.04546341,156.88,156.8,166.58]
[1740392196283,0.04546341,156.88,156.75,1.9948]
[1740392196486,0.04546341,156.88,156.77,6.3763]
[1740392196487,6.3728,156.87,156.77,6.3763]
[1740392196791,11.66,156.91,156.74,1.9396]
[1740392196792,0.04701981,156.84,156.74,1.9396]
[1740392196988,36.15938049,156.82,156.69,3.8982]
[1740392197188,36.15938049,156.79,156.69,1.9396]
[1740392197583,47.83938049,156.82,156.69,1.9396]
[1740392197790,0.04192098,156.76,156.64,1.9948]
[1740392198094,111.8580005,156.96,156.74,36.15938049]
[1740392198288,111.8580005,156.96,156.8,36.15938049]
[1740392198592,75.69862001,156.96,156.84,36.15938049]
[1740392198994,75.69862001,156.96,156.75,170.5371]
[1740392199190,11.9,156.95,156.75,170.5371]
[1740392199394,0.04911731,156.91,156.87,0.04765249]
[1740392199586,103.83919934,156.94,156.75,170.5371]
[1740392199791,0.04304921,156.91,156.87,0.04681121]
[1740392200187,0.04304921,156.91,156.78,36.15938049]
[1740392200188,36.15938049,156.94,156.8,6.3753]
[1740392200388,0.04275204,156.91,156.87,0.04281941]
[1740392200891,0.04682105,156.91,156.87,0.04023845]
[1740392201993,0.04682105,156.91,156.88,6.3721]
[1740392202485,0.04682105,156.91,156.87,0.04023845]
[1740392202689,0.04682105,156.91,156.87,6.41243845]
[1740392202885,0.04682105,156.91,156.87,0.04023845]
[1740392203089,4.13021901,156.9,156.87,0.04023845]
[1740392203297,0.13021901,156.9,156.88,6.3722]
[1740392203701,0.04682105,156.91,156.87,0.04023845]
[1740392205291,36.20620154,156.91,156.87,0.04023845]
[1740392205489,36.15938049,156.88,156.8,6.3754]
[1740392205693,36.15938049,156.88,156.77,3.9119]
[1740392205895,36.15938049,156.88,156.8,6.3754]
[1740392206092,36.15938049,156.88,156.77,3.9119]
[1740392206799,0.04798811,156.84,156.77,3.9119]
[1740392207298,0.04798811,156.84,156.8,6.3752]
[1740392207496,0.04798811,156.84,156.77,3.9119]
[1740392207690,0.04798811,156.84,156.8,6.3755]
[1740392208397,0.04798811,156.84,156.8,6.15348689]
[1740392208902,36.15938049,156.82,156.66,36.15938049]
[1740392209101,36.15938049,156.82,156.67,5.9066]
[1740392209399,0.04736061,156.76,156.67,5.9066]
[1740392209801,0.04736061,156.76,156.69,36.15938049]
[1740392209999,0.04736061,156.76,156.75,6.3775]
[1740392210592,0.04736061,156.76,156.69,36.15938049]
[1740392211203,0.04736061,156.76,156.74,6.3779]
[1740392211500,0.04736061,156.76,156.69,36.15938049]
[1740392212598,0.04736061,156.76,156.73,6.378]
[1740392212799,0.04736061,156.76,156.69,36.15938049]
[1740392213699,0.04736061,156.76,156.74,6.3779]
[1740392214007,0.04736061,156.76,156.69,36.15938049]
[1740392214409,0.04736061,156.76,156.75,6.3775]
[1740392215500,0.04736061,156.76,156.74,6.3776]
[1740392216703,0.04736061,156.76,156.69,36.15938049]
[1740392216903,0.04736061,156.76,156.72,6.3785]
[1740392217806,4.05588257,156.75,156.72,6.3785]
[1740392218205,10.43338257,156.75,156.69,6.3796]
[1740392218507,1.9575,156.81,156.67,3.9381]
[1740392218508,36.15938049,156.77,156.67,3.9381]
[1740392218808,0.04453481,156.74,156.67,3.9381]
[1740392219009,0.04453481,156.74,156.71,6.3791]
[1740392219598,4.0550804,156.73,156.71,6.3791]
[1740392219803,10.4334804,156.73,156.68,6.3802]
[1740392220004,10.4334804,156.73,156.63,36.15938049]
[1740392220206,0.04468494,156.72,156.62,3.9283]
[1740392220406,4.0550804,156.72,156.62,3.9283]
[1740392220603,0.04759223,156.69,156.63,36.15938049]
[1740392220800,4.0550804,156.72,156.7,6.3793]
[1740392221209,11.78,156.75,156.62,3.9283]
[1740392221210,36.15938049,156.74,156.62,3.9283]
[1740392221907,0.04818826,156.7,156.66,0.0423828]
[1740392222705,0.04818826,156.7,156.66,6.4234828]
[1740392222902,4.05678961,156.69,156.66,0.0423828]
[1740392223505,0.04818826,156.7,156.66,0.0423828]
[1740392224407,0.04818826,156.7,156.67,6.3807]
[1740392224606,0.04818826,156.7,156.66,0.0423828]
[1740392225599,0.04818826,156.7,156.69,6.3799]
[1740392225807,11.84,156.74,156.67,3.9169]
[1740392226110,11.84,156.74,156.67,1.9032]
[1740392226306,4.05403432,156.73,156.71,6.3788]
[1740392226812,4.05403432,156.73,156.7,6.3793]
[1740392227110,4.05403432,156.73,156.7,6.42431712]
[1740392227307,4.05403432,156.72,156.7,6.42431712]
[1740392227707,4.05403432,156.73,156.7,6.42431712]
[1740392228111,4.05403432,156.73,156.71,6.379]
[1740392228812,4.05403432,156.73,156.7,0.04501712]
[1740392229409,6.3791,156.71,156.7,0.04501712]
[1740392230408,4.05403432,156.71,156.7,0.04501712]
[1740392231017,10.43313432,156.71,156.7,0.04501712]
[1740392233020,4.05403432,156.71,156.62,1.9967]
[1740392234020,4.05403432,156.7,156.62,1.9967]
[1740392234221,0.04492027,156.68,156.65,0.04422897]
[1740392234615,0.04492027,156.68,156.66,6.3812]
[1740392234616,4.05403432,156.67,156.66,6.3812]
[1740392237514,4.05403432,156.67,156.65,0.04422897]
[1740392238624,4.05403432,156.67,156.66,6.3812]
[1740392238923,0.04492027,156.68,156.65,0.04422897]
[1740392239119,0.04492027,156.68,156.67,6.3807]
[1740392239320,0.04492027,156.68,156.65,0.04422897]
[1740392239620,4.12204509,156.67,156.65,0.04422897]
[1740392239822,6.536e-05,156.68,156.65,0.04422897]
[1740392240019,6.536e-05,156.68,156.65,22.9283865]
[1740392240625,6.536e-05,156.68,156.67,29.26485753]
[1740392241122,67.67981885,156.75,156.67,22.88415753]
[1740392241317,61.57661885,156.75,156.74,6.3779]
[1740392241621,58.52601885,156.75,156.74,6.3779]
[1740392242027,58.52601885,156.77,156.75,6.3772]
[1740392242722,58.52601885,156.77,156.76,6.3771]
[1740392242922,58.52601885,156.77,156.74,0.04204796]
[1740392243324,36.5672275,156.76,156.74,0.04204796]
[1740392243824,6.3775,156.75,156.74,0.04204796]
[1740392244227,36.5672275,156.76,156.74,0.04204796]
[1740392244415,0.04425385,156.78,156.74,0.04204796]
[1740392245419,0.04425385,156.78,156.77,6.3767]
[1740392246025,0.04425385,156.78,156.75,1.9264]
[1740392246525,101.89818339,156.84,156.75,1.9264]
[1740392246825,101.89818339,156.84,156.76,1.8735]
[1740392247020,101.89818339,156.84,156.76,3.8077]
[1740392247520,17.36142234,156.84,156.76,3.8077]
[1740392247727,0.0411336,156.82,156.81,6.3751]
[1740392248223,17.36142234,156.84,156.78,0.04084001]
[1740392248725,14.31202234,156.84,156.78,0.04084001]
[1740392248925,26.04213351,156.86,156.78,36.60806751]
[1740392249423,0.04380285,156.84,156.78,36.60806751]
[1740392249623,26.04213351,156.86,156.83,6.3742]
[1740392250014,22.99363351,156.86,156.83,6.3742]
[1740392250419,22.99363351,156.86,156.78,36.5672275]
[1740392250620,0.04560772,156.84,156.8,0.04155134]
[1740392250818,212.28788207,156.91,156.8,0.04155134]
[1740392250819,150.06541089,156.97,156.81,36.5672275]
[1740392251021,150.06541089,156.97,156.86,6.3729]
[1740392251327,150.06541089,156.97,156.82,167.0]
[1740392251528,36.5672275,156.94,156.82,167.0]
[1740392252023,0.04190398,156.9,156.86,0.04092598]
[1740392252730,4.09836959,156.89,156.86,0.04092598]
[1740392253118,6.3725,156.88,156.86,0.04092598]
[1740392253317,4.09836959,156.89,156.86,0.04092598]
[1740392253529,4.09836959,156.87,156.86,0.04092598]
[1740392254722,10.47096959,156.87,156.86,0.04092598]
[1740392254924,4.09836959,156.87,156.86,0.04092598]
[1740392255829,4.09836959,156.87,156.86,6.41392598]
[1740392257332,0.04190398,156.9,156.89,6.3718]
[1740392257529,5.925,156.99,156.86,36.60815348]
[1740392257739,36.5672275,157.0,156.86,36.60815348]
[1740392258028,17.3982,157.03,156.94,6.3695]
[1740392258233,17.3982,157.03,156.86,36.5672275]
[1740392258532,6.3688,156.97,156.86,36.5672275]
[1740392258727,6.3688,156.97,156.93,0.04342093]
[1740392258728,0.04203798,156.96,156.93,0.04342093]
[1740392259333,0.04203798,156.96,156.94,6.3695]
[1740392259727,6.3679,156.99,156.93,0.04342093]
[1740392259928,15.4087,157.03,156.89,36.5672275]
[1740392260333,3.8687,157.03,156.89,36.5672275]
[1740392261050,3.8687,157.03,156.97,6.3683]
[1740392261051,0.04718361,156.98,156.97,6.3683]
[1740392261225,6.367,157.01,156.97,6.3683]
[1740392261429,0.04542901,156.99,156.97,6.3683]
[1740392263531,0.04542901,156.99,156.96,0.04228594]
[1740392266642,36.5672275,156.98,156.96,0.04228594]
[1740392266842,40.3804275,156.98,156.96,0.04228594]
[1740392267642,26.62040639,156.98,156.96,0.04228594]
[1740392267940,26.62040639,156.98,156.87,22.80720639]
[1740392268142,22.80720639,156.96,156.85,24.63830639]
[1740392268641,6.3704,156.93,156.89,6.3718]
[1740392269243,6.41478629,156.93,156.89,6.41780999]
[1740392269445,0.04438629,156.93,156.9,6.3713]
[1740392269839,0.04438629,156.93,156.89,0.04600999]
[1740392270039,6.3707,156.92,156.89,0.04600999]
[1740392271549,0.04438629,156.93,156.82,167.0]
[1740392271750,36.4870968,156.91,156.82,167.0]
[1740392271949,6.3733,156.86,156.82,167.0]
[1740392272746,6.41362566,156.86,156.82,167.04065299]
[1740392272947,6.3735,156.85,156.82,167.04065299]
[1740392273347,0.04032566,156.86,156.82,167.04065299]
[1740392273651,6.3739,156.84,156.82,0.04065299]
[1740392275450,6.3742,156.83,156.82,0.04065299]
[1740392277951,6.3754,156.81,156.76,6.3768]
[1740392278255,1.8402,156.87,156.76,6.3768]
[1740392279054,0.04126289,156.83,156.8,0.04601311]
[1740392279355,6.3751,156.81,156.8,0.04601311]
[1740392280052,6.3751,156.81,156.8,1.311e-05]
[1740392281348,49.6563968,156.82,156.68,36.4870968]
[1740392281552,49.6563968,156.82,156.65,40.1695968]
[1740392281553,36.4870968,156.79,156.65,40.1695968]
[1740392281757,1.9155,156.8,156.71,36.4870968]
[1740392281949,6.3753,156.81,156.77,6.3764]
[1740392282552,6.42256461,156.81,156.77,6.42313822]
[1740392282758,6.42256461,156.81,156.78,6.3762]
[1740392282954,0.04726461,156.81,156.77,0.04673822]
[1740392284757,0.04726461,156.81,156.69,36.4870968]
[1740392285156,6.3762,156.79,156.74,6.3776]
[1740392285359,36.4870968,156.83,156.69,36.4870968]
[1740392285755,0.04498255,156.78,156.73,6.378]
[1740392285957,0.04498255,156.78,156.74,0.04872208]
[1740392286468,6.377,156.77,156.74,0.04872208]
[1740392286660,0.04498255,156.78,156.74,0.04872208]
[1740392287163,6.3769,156.77,156.74,0.04872208]
[1740392287356,0.04498255,156.78,156.74,0.04872208]
[1740392288164,0.04498255,156.78,156.64,360.7066]
[1740392288165,0.04498255,156.78,156.64,168.7066]
[1740392288366,0.04498255,156.78,156.65,36.4870968]
[1740392288663,36.4870968,156.8,156.65,36.4870968]
[1740392289171,6.3798,156.7,156.66,6.3809]
[1740392289361,0.04562032,156.74,156.71,0.04181749]
[1740392289570,36.4870968,156.8,156.65,36.4870968]
[1740392289761,11.3,156.81,156.65,36.4870968]
[1740392289762,0.04032024,156.74,156.71,0.04673845]
[1740392289968,3.8817,156.76,156.65,36.4870968]
[1740392290666,6.3795,156.71,156.67,6.3806]
[1740392290865,3.8817,156.76,156.67,6.3806]
[1740392291066,0.04900578,156.71,156.67,6.42248708]
[1740392291670,6.42840578,156.71,156.67,6.42248708]
[1740392291866,0.04900578,156.71,156.67,6.42248708]
[1740392292170,0.04900578,156.71,156.68,22.86856596]
[1740392292567,0.04900578,156.71,156.67,0.04188708]
[1740392293671,0.04900578,156.71,156.68,6.38]
[1740392293871,6.3796,156.7,156.67,0.04188708]
[1740392294670,0.04900578,156.71,156.67,0.04188708]
[1740392295068,0.04900578,156.71,156.68,6.3801]
[1740392295268,0.04900578,156.71,156.67,0.04188708]
[1740392295867,6.42830578,156.71,156.68,6.3803]
[1740392297669,6.3803,156.68,156.67,0.04188708]
[1740392297875,0.04900578,156.71,156.67,0.04188708]
[1740392298571,6.3796,156.7,156.67,0.04188708]
[1740392298970,0.04900578,156.71,156.67,0.04188708]
[1740392299171,6.3802,156.69,156.67,0.04188708]
[1740392299774,6.3796,156.7,156.67,6.42248708]
[1740392300575,0.04900578,156.71,156.67,0.04188708]
[1740392301176,6.42810578,156.71,156.68,6.38]
[1740392302174,0.04900578,156.71,156.67,0.04188708]
[1740392302380,0.04900578,156.71,156.67,22.91045304]
[1740392303679,0.04900578,156.71,156.67,0.04188708]
[1740392305278,0.04900578,156.71,156.67,22.91045304]
[1740392305976,0.04900578,156.71,156.69,6.3796]
[1740392306376,0.04900578,156.71,156.67,22.91045304]
[1740392307490,0.04900578,156.71,156.7,6.3795]
[1740392309087,6.3774,156.76,156.73,6.3782]
[1740392309583,22.86856596,156.77,156.67,22.86856596]
[1740392309787,22.86856596,156.79,156.67,22.86856596]
[1740392309988,6.3791,156.72,156.65,1.8356]
[1740392310187,0.04116402,156.75,156.71,0.04384703]
[1740392310485,6.42356053,156.75,156.71,0.0446032]
[1740392311085,6.3782,156.74,156.71,6.4234032]
[1740392311492,0.04566053,156.75,156.71,6.4234032]
[1740392311688,6.3784,156.73,156.71,0.0446032]
[1740392311888,0.04566053,156.75,156.71,0.0446032]
[1740392312289,2.00586053,156.75,156.71,0.0446032]
[1740392313289,22.86856596,156.73,156.64,166.9]
[1740392313886,3.9659,156.74,156.65,22.86856596]
[1740392314390,6.42110652,156.71,156.68,6.42764637]
[1740392314790,0.04190652,156.71,156.68,0.04734637]
[1740392314988,0.04190652,156.71,156.7,6.3795]
[1740392315592,3.8343,156.8,156.69,22.86856596]
[1740392316087,3.8343,156.8,156.72,6.3786]
[1740392316589,3.8343,156.8,156.69,22.86856596]
[1740392316788,3.8343,156.8,156.74,0.0490023]
[1740392316789,0.04066009,156.78,156.74,0.0490023]
[1740392316989,3.8343,156.8,156.74,0.0490023]
[1740392317286,6.3769,156.77,156.74,6.4267023]
[1740392317688,0.04193662,156.78,156.74,0.0490023]
[1740392317887,0.04193662,156.78,156.75,22.86856596]
[1740392318587,0.04193662,156.78,156.77,6.3767]
[1740392318999,0.04193662,156.78,156.77,29.24526596]
[1740392319186,110.21148339,156.85,156.8,6.3751]
[1740392319382,103.83778339,156.85,156.77,22.86856596]
[1740392319989,103.83778339,156.85,156.78,6.3762]
[1740392320292,0.04357935,156.82,156.79,0.04496928]
[1740392321192,0.04357935,156.82,156.79,22.91353524]
[1740392322089,0.04357935,156.82,156.8,6.3755]
[1740392322488,0.04357935,156.82,156.81,6.3751]
[1740392323089,0.04357935,156.82,156.79,22.91353524]
[1740392323485,0.04357935,156.82,156.81,6.3751]
[1740392324293,68.91325299,156.9,156.84,6.3736]
[1740392324489,66.99215299,156.9,156.85,22.86856596]
[1740392324997,6.3719,156.89,156.86,6.3728]
[1740392325191,66.99215299,156.9,156.85,22.86856596]
[1740392325394,6.3707,156.92,156.89,6.3716]
[1740392325884,0.04546227,156.92,156.87,22.86856596]
[1740392326296,0.04546227,156.92,156.86,0.04182145]
[1740392327897,6.3718,156.89,156.86,0.04182145]
[1740392328087,0.04546227,156.92,156.86,0.04182145]
[1740392328292,6.3719,156.89,156.86,6.41472145]
[1740392328495,22.86856596,156.89,156.86,0.04182145]
[1740392328790,6.3752,156.81,156.77,173.3564]
[1740392328986,22.86856596,156.85,156.77,166.98]
[1740392329497,1.8763,156.84,156.77,173.3565]
[1740392329692,1.8763,156.84,156.77,166.98]
[1740392329898,0.0417867,156.82,156.79,0.04556309]
[1740392330499,6.3751,156.81,156.79,0.04556309]
[1740392330989,0.0417867,156.82,156.79,0.04556309]
[1740392331601,6.3755,156.8,156.79,0.04556309]
[1740392341402,0.0417867,156.82,156.69,1.7631]
[1740392341615,6.3777,156.75,156.71,22.86856596]
[1740392342315,6.3777,156.75,156.72,6.3787]
[1740392342609,6.42324674,156.75,156.72,6.42392436]
[1740392342815,6.42324674,156.75,156.73,6.3783]
[1740392343014,0.04554674,156.75,156.72,0.04522436]
[1740392343516,0.04554674,156.75,156.74,6.3779]
[1740392344110,24.78856596,156.85,156.73,22.86856596]
[1740392344310,1.92,156.85,156.78,22.86856596]
[1740392344909,6.3751,156.81,156.79,6.3758]
[1740392345120,24.78856596,156.85,156.73,1.9729]
[1740392345316,0.04226285,156.82,156.78,0.04414341]
[1740392346715,6.3754,156.81,156.78,0.04414341]
[1740392347915,0.04226285,156.82,156.78,0.04414341]
[1740392348211,0.04226285,156.82,156.81,22.86856596]
[1740392348418,67.3004283,156.89,156.81,22.86856596]
[1740392348617,6.3728,156.87,156.83,29.24246596]
[1740392348815,67.3004283,156.89,156.83,22.86856596]
[1740392349017,73.6725283,156.89,156.85,29.24166596]
[1740392349621,67.34441358,156.89,156.85,0.0416494]
[1740392350015,1.9676,156.88,156.85,0.0416494]
[1740392350822,6.373,156.86,156.85,0.0416494]
[1740392352924,0.04398528,156.89,156.85,0.0416494]
[1740392353122,0.04398528,156.89,156.85,29.28331536]
[1740392353318,0.04398528,156.89,156.85,0.0416494]
[1740392354021,6.373,156.86,156.85,0.0416494]
[1740392354729,6.3728,156.87,156.85,0.0416494]
[1740392354930,0.04398528,156.89,156.85,0.0416494]
[1740392356026,6.373,156.86,156.85,0.0416494]
[1740392356227,24.87606596,156.88,156.8,166.96]
[1740392356425,22.86856596,156.86,156.8,166.96]
[1740392357228,22.86856596,156.86,156.75,22.86856596]
[1740392357534,0.04781393,156.85,156.81,0.04496965]
[1740392357828,22.86856596,156.86,156.81,0.04496965]
[1740392358026,0.04711425,156.85,156.81,0.04496965]
[1740392358429,6.3746,156.82,156.81,0.04496965]
[1740392358931,6.3774,156.76,156.73,166.9]
[1740392359122,22.86856596,156.82,156.73,166.9]
[1740392359925,0.04845509,156.79,156.76,0.04587157]
[1740392361426,6.3767,156.77,156.76,0.04587157]
[1740392365632,6.42465509,156.79,156.76,6.42267157]
[1740392365834,0.04845509,156.79,156.76,22.91443753]
[1740392366435,6.42435509,156.79,156.77,6.3766]
[1740392366824,6.42435509,156.79,156.76,29.29123753]
[1740392367026,0.04845509,156.79,156.76,0.04587157]
[1740392367636,6.3767,156.77,156.76,0.04587157]
[1740392368839,6.3767,156.77,156.7,6.3794]
[1740392368840,0.04845509,156.79,156.7,22.86856596]
[1740392369034,22.86856596,156.78,156.68,22.86856596]
[1740392369243,3.7887,156.77,156.68,22.86856596]
[1740392369838,3.7887,156.77,156.68,29.24866596]
[1740392370136,6.3791,156.72,156.71,0.04443638]
[1740392371738,0.04604525,156.74,156.66,22.86856596]
[1740392371939,22.86856596,156.76,156.66,22.86856596]
[1740392372340,6.3811,156.67,156.64,22.86856596]
[1740392372843,22.86856596,156.74,156.64,22.86856596]
[1740392373039,0.04235255,156.67,156.64,22.86856596]
[1740392373340,0.04621985,156.67,156.66,22.86856596]
[1740392373841,0.04621985,156.67,156.66,29.24976596]
[1740392374039,0.04621985,156.67,156.66,22.86856596]
[1740392374638,12.14701804,156.76,156.66,22.86856596]
[1740392374839,6.378,156.74,156.71,22.86856596]
[1740392375038,112.63818339,156.83,156.73,22.86856596]
[1740392375247,6.3774,156.76,156.73,22.86856596]
[1740392375438,67.3004283,156.79,156.71,22.86856596]
[1740392375843,6.3774,156.76,156.73,22.912305]
[1740392376338,1.983e-05,156.76,156.75,22.86856596]
[1740392376739,67.3004283,156.79,156.75,22.86856596]
[1740392376937,6.3751,156.81,156.77,22.86856596]
[1740392377137,73.0201283,156.86,156.77,22.86856596]
[1740392377343,73.0201283,156.86,156.78,6.3762]
[1740392377542,73.0201283,156.86,156.79,22.86856596]
[1740392377942,0.04119782,156.84,156.81,22.90955034]
[1740392378745,0.04119782,156.84,156.81,29.28425034]
[1740392378945,0.04119782,156.84,156.83,22.86856596]
[1740392379444,65.48632612,156.86,156.83,22.86856596]
[1740392379648,65.48632612,156.86,156.84,36.50299799]
[1740392379845,65.48632612,156.92,156.84,36.50299799]
[1740392380644,0.04057624,156.9,156.86,0.04687514]
[1740392381352,0.04057624,156.9,156.87,6.3723]
[1740392381656,0.04057624,156.9,156.86,0.04687514]
[1740392381850,0.04057624,156.9,156.86,6.41987514]
[1740392382650,6.41227624,156.9,156.86,0.04687514]
[1740392382951,0.04057624,156.9,156.86,0.04687514]
[1740392384151,6.3719,156.89,156.86,0.04687514]
[1740392384652,6.3719,156.89,156.86,6.41987514]
[1740392385047,6.3719,156.89,156.86,0.04687514]
[1740392385244,0.04057624,156.9,156.86,0.04687514]
[1740392385451,1.9525,156.89,156.77,36.50299799]
[1740392385652,1.9447,156.88,156.77,36.50299799]
[1740392385947,6.3742,156.84,156.77,36.50299799]
[1740392386151,1.9491,156.87,156.77,36.50299799]
[1740392386351,6.3753,156.81,156.77,42.87969799]
[1740392386556,6.3753,156.81,156.8,0.04159773]
[1740392389656,0.04879107,156.82,156.8,0.04159773]
[1740392390459,0.04879107,156.82,156.8,6.41709773]
[1740392391859,0.04879107,156.82,156.81,6.3751]
[1740392393561,6.373,156.86,156.83,6.3741]
[1740392394662,6.41962233,156.86,156.83,6.3741]
[1740392395366,0.04662233,156.86,156.8,36.54459572]
[1740392396558,0.04662233,156.86,156.83,42.87689799]
[1740392398469,0.04662233,156.86,156.85,6.3734]
[1740392399671,0.04662233,156.86,156.85,29.19038494]
[1740392399870,0.04662233,156.86,156.85,22.81698494]
[1740392400467,0.04662233,156.86,156.84,0.04560301]
[1740392400963,6.3734,156.85,156.84,0.04560301]
[1740392404772,6.3734,156.85,156.75,1.8556]
[1740392404773,6.3754,156.81,156.78,29.19318494]
[1740392405173,6.3754,156.81,156.78,22.81698494]
[1740392405377,6.3748,156.82,156.79,6.3758]
[1740392405868,6.3751,156.81,156.79,6.42170993]